{"text_format":"1","workbook":"xlsx","n_sheets":5,"sheets":["Task","Lists of species","Sorensen (Dice)","Sorensen (Dice) (2)","СЗ"],"not_rendered":{"charts":0,"images":0,"macros":0,"external_links":0,"defined_names":0,"comments":0,"pivot_tables":0},"unopened":[],"bounds":{"document_bytes":16777216,"sheet_cells":100000,"rows_first":2000,"rows_last":500,"rows_between":2000,"halvings":0,"cell_chars":16384,"cell_head_chars":4096},"cells_cut":0,"cells_raw":0,"read":"whole","date_system":"1900"}

{"sheet":"Task","index":0,"n_rows":0,"n_cols":0,"rows_kept":0,"cut":false,"hidden":false,"merged":[]}

{"sheet":"Lists of species","index":1,"n_rows":9,"n_cols":8,"rows_kept":9,"cut":false,"hidden":false,"merged":[]}
[]
["Chlorochitrium sp.","Prasiola sp.","Nostoc sp.","Actinotaenium cucurbita","Coleodesmium wrangelii","Leptolyngbya sp.","Leptolyngbya sp.","Leptolyngbya sp."]
["Chlorococcus cf.  giganteus","Chlorosarcinopsis cf. aggregata","Leptolyngbya cf. antarctica ","Coleodesmium wrangelii","Gloeocapsosis magma","Microcoleus steenstrupii","Nostoc sp.","Nostoc sp."]
["Leptolyngbya sp.","Scenedesmus sp.","Oscillatoria cf. subbrevis ","Microspora stagnorum","Microspora stagnorum","Gloeocapsopsis pleurocapsoides","Stichococcus sp.","Gloeocapsopsis magma "]
["Nostoc sp.","Leptolyngbya undosa","Pseudodictyochloris sp.","Gloeocapsopsis pleurocapsoides","Microcoleus steenstrupii","Coleodesmium wrangelii ","Heterococcus sp.","Fragilaria sp."]
["Chlorosarcinopsis cf. aggregata","Mychonastes cf. homosphaera","Leptolyngbya undosa","Chlorogloea sp. ","Leptolyngbya sp.","Actinotaenium cucurbita","Klebsormidium sp.","Leptolyngbya nigrescens "]
[null,null,null,"Gloeocapsosis magma","Klebsormidium sp.","Klebsormidium sp.",null,"Romeria cf. nivicola"]
[null,null,null,null,"Green coccoid","Green coccoid",null,"Actinotaenium cucurbita"]
[null,null,null,null,"Stichococcus sp.",null,null,"Green coccoid"]

{"sheet":"Sorensen (Dice)","index":2,"n_rows":9,"n_cols":9,"rows_kept":9,"cut":false,"hidden":false,"merged":[]}
[null,1,2,3,4,5,6,7,8]
[1,1]
[2,0.2,1]
[3,0.2,0.2,1]
[4,0,0,0,1]
[5,0.15384615384615385,0,0,0.42857142857142855,1]
[6,0.16666666666666666,0,0,0.30769230769230771,0.53333333333333333,1]
[7,0.4,0,0.2,0,0.46153846153846156,0.33333333333333331,1]
[8,0.30769230769230771,0,0.15384615384615385,0.14285714285714285,0.25,0.4,0.30769230769230771,1]

{"sheet":"Sorensen (Dice) (2)","index":3,"n_rows":9,"n_cols":9,"rows_kept":9,"cut":false,"hidden":false,"merged":[]}
[null,1,2,3,4,5,6,7,8]
[1,1]
[2,{"$f":"2*SUM(COUNTIF(INDEX('Lists of species'!$A$2:$H$10000,0,B$1), INDEX('Lists of species'!$A$2:$H$10000,0,$A3))) / (COUNTA(INDEX('Lists of species'!$A$2:$H$10000,0,B$1)) + COUNTA(INDEX('Lists of species'!$A$2:$H$10000,0,$A3)))","v":0.2},1]
[3,{"$f":"2*SUM(COUNTIF(INDEX('Lists of species'!$A$2:$H$10000,0,B$1), INDEX('Lists of species'!$A$2:$H$10000,0,$A4))) / (COUNTA(INDEX('Lists of species'!$A$2:$H$10000,0,B$1)) + COUNTA(INDEX('Lists of species'!$A$2:$H$10000,0,$A4)))","v":0.2},{"$f":"2*SUM(COUNTIF(INDEX('Lists of species'!$A$2:$H$10000,0,C$1),INDEX('Lists of species'!$A$2:$H$10000,0,$A4)))/(COUNTA(INDEX('Lists of species'!$A$2:$H$10000,0,C$1))+COUNTA(INDEX('Lists of species'!$A$2:$H$10000,0,$A4)))","v":0.2},1]
[4,{"$f":"2*SUM(COUNTIF(INDEX('Lists of species'!$A$2:$H$10000,0,B$1), INDEX('Lists of species'!$A$2:$H$10000,0,$A5))) / (COUNTA(INDEX('Lists of species'!$A$2:$H$10000,0,B$1)) + COUNTA(INDEX('Lists of species'!$A$2:$H$10000,0,$A5)))","v":0},{"$f":"2*SUM(COUNTIF(INDEX('Lists of species'!$A$2:$H$10000,0,C$1),INDEX('Lists of species'!$A$2:$H$10000,0,$A5)))/(COUNTA(INDEX('Lists of species'!$A$2:$H$10000,0,C$1))+COUNTA(INDEX('Lists of species'!$A$2:$H$10000,0,$A5)))","v":0},{"$f":"2*SUM(COUNTIF(INDEX('Lists of species'!$A$2:$H$10000,0,D$1),INDEX('Lists of species'!$A$2:$H$10000,0,$A5)))/(COUNTA(INDEX('Lists of species'!$A$2:$H$10000,0,D$1))+COUNTA(INDEX('Lists of species'!$A$2:$H$10000,0,$A5)))","v":0},1]
[5,{"$f":"2*SUM(COUNTIF(INDEX('Lists of species'!$A$2:$H$10000,0,B$1), INDEX('Lists of species'!$A$2:$H$10000,0,$A6))) / (COUNTA(INDEX('Lists of species'!$A$2:$H$10000,0,B$1)) + COUNTA(INDEX('Lists of species'!$A$2:$H$10000,0,$A6)))","v":0.15384615384615385},{"$f":"2*SUM(COUNTIF(INDEX('Lists of species'!$A$2:$H$10000,0,C$1),INDEX('Lists of species'!$A$2:$H$10000,0,$A6)))/(COUNTA(INDEX('Lists of species'!$A$2:$H$10000,0,C$1))+COUNTA(INDEX('Lists of species'!$A$2:$H$10000,0,$A6)))","v":0},{"$f":"2*SUM(COUNTIF(INDEX('Lists of species'!$A$2:$H$10000,0,D$1),INDEX('Lists of species'!$A$2:$H$10000,0,$A6)))/(COUNTA(INDEX('Lists of species'!$A$2:$H$10000,0,D$1))+COUNTA(INDEX('Lists of species'!$A$2:$H$10000,0,$A6)))","v":0},{"$f":"2*SUM(COUNTIF(INDEX('Lists of species'!$A$2:$H$10000,0,E$1),INDEX('Lists of species'!$A$2:$H$10000,0,$A6)))/(COUNTA(INDEX('Lists of species'!$A$2:$H$10000,0,E$1))+COUNTA(INDEX('Lists of species'!$A$2:$H$10000,0,$A6)))","v":0.42857142857142855},1]
[6,{"$f":"2*SUM(COUNTIF(INDEX('Lists of species'!$A$2:$H$10000,0,B$1), INDEX('Lists of species'!$A$2:$H$10000,0,$A7))) / (COUNTA(INDEX('Lists of species'!$A$2:$H$10000,0,B$1)) + COUNTA(INDEX('Lists of species'!$A$2:$H$10000,0,$A7)))","v":0.16666666666666666},{"$f":"2*SUM(COUNTIF(INDEX('Lists of species'!$A$2:$H$10000,0,C$1),INDEX('Lists of species'!$A$2:$H$10000,0,$A7)))/(COUNTA(INDEX('Lists of species'!$A$2:$H$10000,0,C$1))+COUNTA(INDEX('Lists of species'!$A$2:$H$10000,0,$A7)))","v":0},{"$f":"2*SUM(COUNTIF(INDEX('Lists of species'!$A$2:$H$10000,0,D$1),INDEX('Lists of species'!$A$2:$H$10000,0,$A7)))/(COUNTA(INDEX('Lists of species'!$A$2:$H$10000,0,D$1))+COUNTA(INDEX('Lists of species'!$A$2:$H$10000,0,$A7)))","v":0},{"$f":"2*SUM(COUNTIF(INDEX('Lists of species'!$A$2:$H$10000,0,E$1),INDEX('Lists of species'!$A$2:$H$10000,0,$A7)))/(COUNTA(INDEX('Lists of species'!$A$2:$H$10000,0,E$1))+COUNTA(INDEX('Lists of species'!$A$2:$H$10000,0,$A7)))","v":0.30769230769230771},{"$f":"2*SUM(COUNTIF(INDEX('Lists of species'!$A$2:$H$10000,0,F$1),INDEX('Lists of species'!$A$2:$H$10000,0,$A7)))/(COUNTA(INDEX('Lists of species'!$A$2:$H$10000,0,F$1))+COUNTA(INDEX('Lists of species'!$A$2:$H$10000,0,$A7)))","v":0.53333333333333333},1]
[7,{"$f":"2*SUM(COUNTIF(INDEX('Lists of species'!$A$2:$H$10000,0,B$1), INDEX('Lists of species'!$A$2:$H$10000,0,$A8))) / (COUNTA(INDEX('Lists of species'!$A$2:$H$10000,0,B$1)) + COUNTA(INDEX('Lists of species'!$A$2:$H$10000,0,$A8)))","v":0.4},{"$f":"2*SUM(COUNTIF(INDEX('Lists of species'!$A$2:$H$10000,0,C$1),INDEX('Lists of species'!$A$2:$H$10000,0,$A8)))/(COUNTA(INDEX('Lists of species'!$A$2:$H$10000,0,C$1))+COUNTA(INDEX('Lists of species'!$A$2:$H$10000,0,$A8)))","v":0},{"$f":"2*SUM(COUNTIF(INDEX('Lists of species'!$A$2:$H$10000,0,D$1),INDEX('Lists of species'!$A$2:$H$10000,0,$A8)))/(COUNTA(INDEX('Lists of species'!$A$2:$H$10000,0,D$1))+COUNTA(INDEX('Lists of species'!$A$2:$H$10000,0,$A8)))","v":0.2},{"$f":"2*SUM(COUNTIF(INDEX('Lists of species'!$A$2:$H$10000,0,E$1),INDEX('Lists of species'!$A$2:$H$10000,0,$A8)))/(COUNTA(INDEX('Lists of species'!$A$2:$H$10000,0,E$1))+COUNTA(INDEX('Lists of species'!$A$2:$H$10000,0,$A8)))","v":0},{"$f":"2*SUM(COUNTIF(INDEX('Lists of species'!$A$2:$H$10000,0,F$1),INDEX('Lists of species'!$A$2:$H$10000,0,$A8)))/(COUNTA(INDEX('Lists of species'!$A$2:$H$10000,0,F$1))+COUNTA(INDEX('Lists of species'!$A$2:$H$10000,0,$A8)))","v":0.46153846153846156},{"$f":"2*SUM(COUNTIF(INDEX('Lists of species'!$A$2:$H$10000,0,G$1),INDEX('Lists of species'!$A$2:$H$10000,0,$A8)))/(COUNTA(INDEX('Lists of species'!$A$2:$H$10000,0,G$1))+COUNTA(INDEX('Lists of species'!$A$2:$H$10000,0,$A8)))","v":0.33333333333333331},1]
[8,{"$f":"2*SUM(COUNTIF(INDEX('Lists of species'!$A$2:$H$10000,0,B$1), INDEX('Lists of species'!$A$2:$H$10000,0,$A9))) / (COUNTA(INDEX('Lists of species'!$A$2:$H$10000,0,B$1)) + COUNTA(INDEX('Lists of species'!$A$2:$H$10000,0,$A9)))","v":0.30769230769230771},{"$f":"2*SUM(COUNTIF(INDEX('Lists of species'!$A$2:$H$10000,0,C$1),INDEX('Lists of species'!$A$2:$H$10000,0,$A9)))/(COUNTA(INDEX('Lists of species'!$A$2:$H$10000,0,C$1))+COUNTA(INDEX('Lists of species'!$A$2:$H$10000,0,$A9)))","v":0},{"$f":"2*SUM(COUNTIF(INDEX('Lists of species'!$A$2:$H$10000,0,D$1),INDEX('Lists of species'!$A$2:$H$10000,0,$A9)))/(COUNTA(INDEX('Lists of species'!$A$2:$H$10000,0,D$1))+COUNTA(INDEX('Lists of species'!$A$2:$H$10000,0,$A9)))","v":0.15384615384615385},{"$f":"2*SUM(COUNTIF(INDEX('Lists of species'!$A$2:$H$10000,0,E$1),INDEX('Lists of species'!$A$2:$H$10000,0,$A9)))/(COUNTA(INDEX('Lists of species'!$A$2:$H$10000,0,E$1))+COUNTA(INDEX('Lists of species'!$A$2:$H$10000,0,$A9)))","v":0.14285714285714285},{"$f":"2*SUM(COUNTIF(INDEX('Lists of species'!$A$2:$H$10000,0,F$1),INDEX('Lists of species'!$A$2:$H$10000,0,$A9)))/(COUNTA(INDEX('Lists of species'!$A$2:$H$10000,0,F$1))+COUNTA(INDEX('Lists of species'!$A$2:$H$10000,0,$A9)))","v":0.25},{"$f":"2*SUM(COUNTIF(INDEX('Lists of species'!$A$2:$H$10000,0,G$1),INDEX('Lists of species'!$A$2:$H$10000,0,$A9)))/(COUNTA(INDEX('Lists of species'!$A$2:$H$10000,0,G$1))+COUNTA(INDEX('Lists of species'!$A$2:$H$10000,0,$A9)))","v":0.4},{"$f":"2*SUM(COUNTIF(INDEX('Lists of species'!$A$2:$H$10000,0,H$1),INDEX('Lists of species'!$A$2:$H$10000,0,$A9)))/(COUNTA(INDEX('Lists of species'!$A$2:$H$10000,0,H$1))+COUNTA(INDEX('Lists of species'!$A$2:$H$10000,0,$A9)))","v":0.30769230769230771},1]

{"sheet":"СЗ","index":4,"n_rows":178,"n_cols":7,"rows_kept":178,"cut":false,"hidden":true,"merged":[[0,0,0,5],[1,0,1,4],[2,0,2,3],[3,0,3,2],[4,0,4,1]]}
["Cyanoprocaryota"]
["Cyanophyceae"]
["Chroococcales"]
["Aphanothecaceae"]
["Aphanothece C. Nägeli, 1849"]
["Aphanothece bachmannii Komárková-Legnerová et Cronberg 1994",null,null,null,null,null,"Chroococcales"]
["Aphanothece clathrata West & G.S.West 1906",null,null,null,null,null,"Chroococcales"]
["Aphanothece utahensis Tilden 1898",null,null,null,null,null,"Chroococcales"]
["Chlorogloea sarcinoides(Elenkin) Troickaja 1928",null,null,null,null,null,"Chroococcales"]
["Chondrocystis sarcinoides (Elenkin) Komárek & Anagn. 1995 ",null,null,null,null,null,"Chroococcales"]
["Chroococcus cohaerens (Bréb.) Nägeli 1849",null,null,null,null,null,"Chroococcales"]
["Chroococcus minutus  (Kützing) Nägeli 1849",null,null,null,null,null,"Chroococcales"]
["Chroococcus pulcherrimus Welch 1965",null,null,null,null,null,"Chroococcales"]
["Chroococcus turgidus (Kiltzing) Nageli",null,null,null,null,null,"Chroococcales"]
["Gloeocapsa turgida (Kützing) Hollerbach in Elenkin 1937",null,null,null,null,null,"Chroococcales"]
["Gloeocapsopsis crepidinum (Thur.) Geitler ex Komárek 1993",null,null,null,null,null,"Chroococcales"]
["Gloeothece confluens Nägeli, 1849",null,null,null,null,null,"Chroococcales"]
["Gomphosphaeria aponina KUtzing, 1836",null,null,null,null,null,"Chroococcales"]
["Gomphosphaeria salina Komárek & Hindák 1988",null,null,null,null,null,"Chroococcales"]
["Microcystis litoralis",null,null,null,null,null,"Chroococcales"]
["Microcystis pulverea (H.C. Wood) Forti emend Elenkin, 1933",null,null,null,null,null,"Chroococcales"]
["Pseudocapsa sphaerica Kováčik, 1988",null,null,null,null,null,"Chroococcales"]
["Anabaena bergii Ostenf. F.minor [Kisselev) Kossinsk. In Elenkin 1938",null,null,null,null,null,"Nostocales"]
["Anabaena contorta Bachmann 1921",null,null,null,null,null,"Nostocales"]
["Anabaena cylindrica Lemmerm. 1896",null,null,null,null,null,"Nostocales"]
["Anabaena flos-aguae f. jacutica (Kissel) Elenk.",null,null,null,null,null,"Nostocales"]
["Anabaena solicola Kondratyeva 1959",null,null,null,null,null,"Nostocales"]
["Anabaena spiroides Kleb. f. spiroides",null,null,null,null,null,"Nostocales"]
["Anabaena thermalis Vouk.",null,null,null,null,null,"Nostocales"]
["Anabaena variabilis Kuetz.",null,null,null,null,null,"Nostocales"]
["Calothrix aeruginosa Woronichin 1923",null,null,null,null,null,"Nostocales"]
["Calothrix cf. contarenii (Zanardini) Bornet et Flahault 1886",null,null,null,null,null,"Nostocales"]
["Calothrix confervicola",null,null,null,null,null,"Nostocales"]
["Calothrix elenkinii Kossinsk. 1924",null,null,null,null,null,"Nostocales"]
["Calothrix fusca (Kütz.) Bornet et Flahault",null,null,null,null,null,"Nostocales"]
["Calothrix parietina Thuret, 1886",null,null,null,null,null,"Nostocales"]
["Nodularia harveyana (Thw.) Thur. 1875",null,null,null,null,null,"Nostocales"]
["Nodularia spumigena Mert. ex Bornet & Flahault 1888",null,null,null,null,null,"Nostocales"]
["Nostoc commune Vaucher sensu Elenkin 1931",null,null,null,null,null,"Nostocales"]
["Nostoc commune Vaucher sensu Elenkin 1949 f. sphaericum (Vaucher) Elenkin 1949",null,null,null,null,null,"Nostocales"]
["Nostoc cuticulare Bornet et Flahault 1888",null,null,null,null,null,"Nostocales"]
["Nostoc cuticulare f. polymorphum Born. et Flah.",null,null,null,null,null,"Nostocales"]
["Nostoc edaphicum N.V. Kondrat. 1962",null,null,null,null,null,"Nostocales"]
["Nostoc enthophytum Bornet et Flahault 1888 ",null,null,null,null,null,"Nostocales"]
["Nostoc linckia (Roth) Bornet et Flahault 1880 ",null,null,null,null,null,"Nostocales"]
["Nostoc linckia f. terrestris (Roth.) Born. Et Flah. Elenkin 1938",null,null,null,null,null,"Nostocales"]
["Nostoc linckia f.muscorum (Roth.) Born. Et Flah. (Agardh) Elenkin 1949",null,null,null,null,null,"Nostocales"]
["Nostoc microscopicum Carmich. sensu Elenkin 1949",null,null,null,null,null,"Nostocales"]
["Nostoc muscorum C. Agardh 1812",null,null,null,null,null,"Nostocales"]
["Nostoc paludosum Kütz. ex Bornet & Flahault 1886",null,null,null,null,null,"Nostocales"]
["Nostoc punctiforme (Kütz.) Hariot.1891",null,null,null,null,null,"Nostocales"]
["Nostoc zetterstedtii Aresch.",null,null,null,null,null,"Nostocales"]
["Trichormus ellipsosporus (F.E. Fritsch) Komárek et Anagn. 1989",null,null,null,null,null,"Nostocales"]
["Trichormus khannae (Skuja) Komárek et Anagnostidis 1989",null,null,null,null,null,"Nostocales"]
["Trichormus propinquus (Setch. et N.L. Gardner) Komárek et Anagn. 1989 ",null,null,null,null,null,"Nostocales"]
["Trichormus pseudovariabilis (Woron.) Komárek et Anagnostidis 1989",null,null,null,null,null,"Nostocales"]
["Trichormus thermalis (Vouk) Komárek et Anagnostidis 1989",null,null,null,null,null,"Nostocales"]
["Trichormus variabilis (Kütz. ex Bornet et Flahault) Komárek et Anagnostidis 1989",null,null,null,null,null,"Nostocales"]
["Trichormus variabilis (Kützing ex Bornet et Flahault) Komárek et Anagnostidis 1989 f. tenuis Popova 1930",null,null,null,null,null,"Nostocales"]
["Borzia sp. ",null,null,null,null,null,"Oscillatoriales"]
["Coleofasciculus chtonoplastes (Thur. ex Gomont) M. Siegesmund J.R. Johansen et T. Friedl (Microcoleus chthonoplastes)",null,null,null,null,null,"Oscillatoriales"]
["Hydrocoleum homoeotrichum Kütz. ex Gomont. 1892",null,null,null,null,null,"Oscillatoriales"]
["Hydrocoleum sp.",null,null,null,null,null,"Oscillatoriales"]
["Jaaginema angustissimum",null,null,null,null,null,"Oscillatoriales"]
["Jaaginema kuetzingianum (Nägeli in Kütz.) Anagn. et Komárek 1988 ",null,null,null,null,null,"Oscillatoriales"]
["Johannesbaptistia pellucida Taylor et Drouet, 1938",null,null,null,null,null,"Oscillatoriales"]
["Komvophoron breve (N. Carter) Anagn. 2001",null,null,null,null,null,"Oscillatoriales"]
["Komvophoron minutum (Skuja) Anagnostidis et Komárek 1988",null,null,null,null,null,"Oscillatoriales"]
["Komvophoron mucicola Hub.-Pest. et Naumann, 1929",null,null,null,null,null,"Oscillatoriales"]
["Leptolyngbya amplivaginata (Goor) Anagnostidis & Komárek 1988",null,null,null,null,null,"Oscillatoriales"]
["Leptolyngbya boryana (Gomont) Anagn. et Komárek 1988",null,null,null,null,null,"Oscillatoriales"]
["Leptolyngbya cf. lagerheimii (Gomont) Anagn. et Komárek 1988",null,null,null,null,null,"Oscillatoriales"]
["Leptolyngbya cf. tenuis (Gomont) Anagn. et Komárek 1988",null,null,null,null,null,"Oscillatoriales"]
["Leptolyngbya foveolarum (Rabenh. ex Gomont) Anagn. et Komárek 1988",null,null,null,null,null,"Oscillatoriales"]
["Leptolyngbya fragilis (Gomont) Anagnostidis et Komárek 1988",null,null,null,null,null,"Oscillatoriales"]
["Leptolyngbya frigida (Fritsch) Anagn. et Komárek 1988",null,null,null,null,null,"Oscillatoriales"]
["Leptolyngbya halophila (Hansg. ex Gomont) Anagn. et Komárek 1988",null,null,null,null,null,"Oscillatoriales"]
["Leptolyngbya komarovii Anisimova 1949",null,null,null,null,null,"Oscillatoriales"]
["Leptolyngbya lagerheimii (Gomont ex Gomont) Anagnostidis & Komárek 1988",null,null,null,null,null,"Oscillatoriales"]
["Leptolyngbya laminosа (Gomont) Anagnostidis et Komárek 1988",null,null,null,null,null,"Oscillatoriales"]
["Leptolyngbya limnetica Anagnostidis et Komárek, 1988",null,null,null,null,null,"Oscillatoriales"]
["Leptolyngbya nostocorum (Bornet ex Gomont) Anagn. et Komárek 1988 ",null,null,null,null,null,"Oscillatoriales"]
["Leptolyngbya notata (Schmidle) Anagn. et Komarek 1988",null,null,null,null,null,"Oscillatoriales"]
["Leptolyngbya perelegans (Lemmerm.) Anagnostidis et Komárek 1988",null,null,null,null,null,"Oscillatoriales"]
["Leptolyngbya tenuis (Gomont) Anagnostidis et Komárek 1988",null,null,null,null,null,"Oscillatoriales"]
["Leptolyngbya valderiana (Gomont) Anagnostidis et Komárek 1988",null,null,null,null,null,"Oscillatoriales"]
["Lyngbya aestuarii (Mert.) Liebm. 1841 ",null,null,null,null,null,"Oscillatoriales"]
["Lyngbya confervoides",null,null,null,null,null,"Oscillatoriales"]
["Lyngbya lutea Gomont, 1892",null,null,null,null,null,"Oscillatoriales"]
["Lyngbya maior Meneghini, 1892",null,null,null,null,null,"Oscillatoriales"]
["Lyngbya salina Kutzing ex Starmach 1966",null,null,null,null,null,"Oscillatoriales"]
["Lyngbya scotii F.E. Fritsch.",null,null,null,null,null,"Oscillatoriales"]
["Lyngbya semiplena J. Agardh ex Gomont 1892",null,null,null,null,null,"Oscillatoriales"]
["Microcoleus paludosus",null,null,null,null,null,"Oscillatoriales"]
["Microcoleus tenerimus Gomont, 1892",null,null,null,null,null,"Oscillatoriales"]
["Microcoleus vaginatus Gomont, 1890",null,null,null,null,null,"Oscillatoriales"]
["Oscillatoria brevis (Kuetz.) Gom.",null,null,null,null,null,"Oscillatoriales"]
["Oscillatoria geminata Menegh., 1892",null,null,null,null,null,"Oscillatoriales"]
["Oscillatoria irrigua Kiitzing ех Gomont",null,null,null,null,null,"Oscillatoriales"]
["Oscillatoria lemmermannii Wolosz.",null,null,null,null,null,"Oscillatoriales"]
["Oscillatoria limnetica Lemm.",null,null,null,null,null,"Oscillatoriales"]
["Oscillatoria limosa Ag.",null,null,null,null,null,"Oscillatoriales"]
["Oscillatoria lloyadiana Gomont, 1899",null,null,null,null,null,"Oscillatoriales"]
["Oscillatoria okenii Ag.",null,null,null,null,null,"Oscillatoriales"]
["Oscillatoria ornata Kütz. ex Gomont 1892",null,null,null,null,null,"Oscillatoriales"]
["Oscillatoria pseudogeminata G. Schmid",null,null,null,null,null,"Oscillatoriales"]
["Oscillatoria salina Biswas 1926",null,null,null,null,null,"Oscillatoriales"]
["Oscillatoria sp. ",null,null,null,null,null,"Oscillatoriales"]
["Oscillatoria tenuis Agardh ex Gomont 1892",null,null,null,null,null,"Oscillatoriales"]
["Oscillatoria terebriformis (Ag.) Elenk.",null,null,null,null,null,"Oscillatoriales"]
["Phormidium ambiguum Gomont ex Gomont 1892",null,null,null,null,null,"Oscillatoriales"]
["Phormidium ambiguum var. major Lemmermann 1910",null,null,null,null,null,"Oscillatoriales"]
["Phormidium autumnale Gomont 1892",null,null,null,null,null,"Oscillatoriales"]
["Phormidium bohneri Schmidle",null,null,null,null,null,"Oscillatoriales"]
["Phormidium cf. amphibium (C.Agardh ex Gomont) Anagn. et Komárek 1988",null,null,null,null,null,"Oscillatoriales"]
["Phormidium corallinae (Gomont ex Gomont) Anagnostidis et Komárek 1988",null,null,null,null,null,"Oscillatoriales"]
["Phormidium corium Gomont 1892",null,null,null,null,null,"Oscillatoriales"]
["Phormidium favosum (Bory) Gomont",null,null,null,null,null,"Oscillatoriales"]
["Phormidium formosum (Bory ex Gomont) Anagnostidis et Komárek 1988",null,null,null,null,null,"Oscillatoriales"]
["Phormidium foveolarum (Мont.) Gom.",null,null,null,null,null,"Oscillatoriales"]
["Phormidium fragile (Menegh.) Goin.",null,null,null,null,null,"Oscillatoriales"]
["Phormidium frigidum F.E.fritsch.",null,null,null,null,null,"Oscillatoriales"]
["Phormidium henningsii Lemm.",null,null,null,null,null,"Oscillatoriales"]
["Phormidium irriguum (Kütz. ex Gomont) Anagn. et Komárek 1988",null,null,null,null,null,"Oscillatoriales"]
["Phormidium komarovii",null,null,null,null,null,"Oscillatoriales"]
["Phormidium laetevirens (P.Crouan & H.Crouan ex Gomont) Anagnostidis & Komárek 1988",null,null,null,null,null,"Oscillatoriales"]
["Phormidium laminosum (Ag.) Gom.",null,null,null,null,null,"Oscillatoriales"]
["Phormidium lloydianum (Gomont) Anagnostidis et Komärek 1988",null,null,null,null,null,"Oscillatoriales"]
["Phormidium lucidum Kützing ex Gomont 1892",null,null,null,null,null,"Oscillatoriales"]
["Phormidium molle Gomont 1892",null,null,null,null,null,"Oscillatoriales"]
["Phormidium mucicola Huber - Pestalozzi et Naumann",null,null,null,null,null,"Oscillatoriales"]
["Phormidium okenii (C.Agardh ex Gomont) Anagnostidis & Komárek 1988",null,null,null,null,null,"Oscillatoriales"]
["Phormidium papyraceum Gomont ex Gomont 1892",null,null,null,null,null,"Oscillatoriales"]
["Phormidium paulsenianum Boye-Peters 1930",null,null,null,null,null,"Oscillatoriales"]
["Phormidium paulsenianum Boye-Petersen 1930 f. takyricum Novičkova 1960",null,null,null,null,null,"Oscillatoriales"]
["Phormidium retzii (Agardh) Gomont ex Gomont 1892",null,null,null,null,null,"Oscillatoriales"]
["Phormidium subfuscum Kütz. ex Gomont 1892",null,null,null,null,null,"Oscillatoriales"]
["Phormidium subuliforme (Thw. ex Gomont) Anagn. et Komárek 1988",null,null,null,null,null,"Oscillatoriales"]
["Phormidium takyricum",null,null,null,null,null,"Oscillatoriales"]
["Phormidium tenue (Agardh ex Gomont) Anagnostidis et Komarek",null,null,null,null,null,"Oscillatoriales"]
["Phormidium tergestinum (Kutzing) Anagnostidis et Komarek 1988",null,null,null,null,null,"Oscillatoriales"]
["Phormidium tinctorium Kuetz.",null,null,null,null,null,"Oscillatoriales"]
["Phormidium uncinatum Gomont ex Gomont 1892",null,null,null,null,null,"Oscillatoriales"]
["Phormidium valderiae (Delp.) Geitler",null,null,null,null,null,"Oscillatoriales"]
["Planktolyngbya limnetica (Lemmerm.) Komarkova – Legnerova et Cronberg 1992",null,null,null,null,null,"Oscillatoriales"]
["Plectonema batrachospermumStarmach 1957",null,null,null,null,null,"Oscillatoriales"]
["Plectonema notatum (Schmidle) Anagnostidis & Komárek, 1988",null,null,null,null,null,"Oscillatoriales"]
["Porphyrosiphon luteus (Gomont ex Gomont) Anagn. et Komárek 1988 ",null,null,null,null,null,"Oscillatoriales"]
["Pseudanabaena catenata Lauterborn 1915",null,null,null,null,null,"Oscillatoriales"]
["Pseudanabaena galeata Böcher 1949",null,null,null,null,null,"Oscillatoriales"]
["Pseudanabaena limnetica (Lemmerm.) Komárek 1974",null,null,null,null,null,"Oscillatoriales"]
["Pseudanabaena mucicola (Naumann et Hub.-Pest.) Schwabe 1964 ",null,null,null,null,null,"Oscillatoriales"]
["Pseudophormidium edaphicum (Elenkin) Anagnostidis & Komárek 1988",null,null,null,null,null,"Oscillatoriales"]
["Symploca elegans Kützing ex Gomont 1892",null,null,null,null,null,"Oscillatoriales"]
["Symploca muscorum Gomont ex Gomont 1892",null,null,null,null,null,"Oscillatoriales"]
["Symplocastrum friesii (Gomont) Kirchn. 1898",null,null,null,null,null,"Oscillatoriales"]
["Hyella caespitosa Bornet et Flahault, 1888",null,null,null,null,null,"Pleurocapsales"]
["Spirulina major Kütz. 1843",null,null,null,null,null,"Spirulinales"]
["Spirulina subsalsa Oersted ex Gomont 1892",null,null,null,null,null,"Spirulinales"]
["Spirulina tenuissima Schwabe, 1944",null,null,null,null,null,"Spirulinales"]
["Aphanocapsa grevillei (Berkeley) Rabenhorst 1865",null,null,null,null,null,"Synechococcales"]
["Aphanocapsa litoralis Komárek et Anagnostidis, 1995",null,null,null,null,null,"Synechococcales"]
["Aphanocapsa salina Woron. 1929",null,null,null,null,null,"Synechococcales"]
["Chamaesiphon confervicola A.Braun in Rabenhorst 1864",null,null,null,null,null,"Synechococcales"]
["Merismopedia elegans A. Braun in KUtzing, 1849",null,null,null,null,null,"Synechococcales"]
["Merismopedia glauca (Ehrenb.) Kütz. 1845",null,null,null,null,null,"Synechococcales"]
["Merismopedia mediterranea Nägeli 1849",null,null,null,null,null,"Synechococcales"]
["Merismopedia punctate Meyen, 1839",null,null,null,null,null,"Synechococcales"]
["Microcrocis sp.",null,null,null,null,null,"Synechococcales"]
["Schizothrix arenaria (Berk.) Gomont 1892",null,null,null,null,null,"Synechococcales"]
["Schizothrix calcicola Gomont 1892",null,null,null,null,null,"Synechococcales"]
["Schizothrix coriacea Kützing ex Gomont 1892",null,null,null,null,null,"Synechococcales"]
["Schizothrix friesii (Agardh) Gomont",null,null,null,null,null,"Synechococcales"]
["Schizothrix lardacea Gomont 1892",null,null,null,null,null,"Synechococcales"]
["Schizothrix lenormandiana",null,null,null,null,null,"Synechococcales"]
["Synechocystis crassa Woronichin, 1929",null,null,null,null,null,"Synechococcales"]
["Synechocystis minuscula Woron. 1926 ",null,null,null,null,null,"Synechococcales"]
["Synechocystis salina Wislouch, 1924",null,null,null,null,null,"Synechococcales"]